bitfinex/quotes_SOLUSD_20250101
["timestamp","ask_amount","ask_price","bid_price","bid_amount"]
[1735772135576,7.08855486,194.73,194.66,38.98606744]
[1735772135797,6.6977,194.82,194.7,10.20918344]
[1735772136002,5.1321,194.85,194.72,10.20918344]
[1735772136508,7.29792396,194.85,194.76,10.20918344]
[1735772137900,7.29792396,194.85,194.75,15.97903533]
[1735772138307,11.65326103,194.85,194.75,15.97903533]
[1735772138522,23.776884,194.84,194.75,10.20918344]
[1735772138703,23.776884,194.84,194.74,10.20918344]
[1735772144625,5.1302,194.93,194.78,15.20918344]
[1735772144811,20.0,194.9,194.78,15.97891398]
[1735772145126,5.1302,194.93,194.8,15.20918344]
[1735772145718,23.776884,194.92,194.8,5.0]
[1735772147025,23.776884,194.92,194.79,15.20918344]
[1735772147526,23.776884,194.92,194.75,10.20918344]
[1735772147527,20.0,194.87,194.75,10.20918344]
[1735772148415,43.776884,194.87,194.75,10.20918344]
[1735772148811,23.776884,194.86,194.75,10.20918344]
[1735772149019,23.776884,194.86,194.74,10.20918344]
[1735772149927,23.776884,194.87,194.74,10.20918344]
[1735772153403,23.776884,194.87,194.73,7.8898]
[1735772153404,23.776884,194.84,194.73,7.8898]
[1735772153602,20.0,194.83,194.73,7.8898]
[1735772153806,23.776884,194.82,194.73,7.8898]
[1735772157222,5.1332,194.81,194.68,8.0745]
[1735772157428,20.0,194.77,194.68,8.0745]
[1735772158725,20.0,194.77,194.68,18.28368344]
[1735772166029,20.0,194.77,194.68,8.0745]
[1735772166345,20.0,194.77,194.68,18.28368344]
[1735772168121,28.911584,194.76,194.65,0.77026446]
[1735772168323,28.911584,194.76,194.61,7.8933]
[1735772168324,43.776884,194.72,194.61,7.8933]
[1735772168530,44.85656738,194.72,194.61,7.8933]
[1735772168735,50.9621413,194.72,194.61,7.8933]
[1735772169616,50.9621413,194.72,194.62,10.20918344]
[1735772177775,50.9621413,194.72,194.61,12.8933]
[1735772181557,7.1852573,194.72,194.64,6.567]
[1735772181864,7.17125429,194.75,194.67,10.20918344]
[1735772182175,7.1852573,194.77,194.68,10.20918344]
[1735772182440,7.1852573,194.77,194.69,6.567]
[1735772191943,7.1852573,194.77,194.69,11.567]
[1735772198954,23.776884,194.79,194.69,6.567]
[1735772199254,23.776884,194.77,194.69,6.567]
[1735772199457,1.07968338,194.76,194.69,6.567]
[1735772199662,7.1852573,194.76,194.69,6.567]
[1735772205889,95.96034551,194.85,194.7,1.5789]
[1735772205890,7.1852573,194.82,194.7,1.5789]
[1735772206089,23.776884,194.81,194.71,0.77006918]
[1735772208382,7.1852573,194.82,194.72,11.271]
[1735772208583,7.1852573,194.82,194.72,21.48018344]
[1735772208778,7.17125429,194.85,194.74,1.5304]
[1735772210395,7.17125429,194.85,194.75,20.0]
[1735772210609,7.17125429,194.85,194.74,6.5304]
[1735772211604,7.17125429,194.85,194.75,20.0]
[1735772213689,7.17125429,194.85,194.76,6.271]
[1735772213889,83.0207,194.92,194.78,11.73958344]
[1735772214095,20.0,194.9,194.8,6.271]
[1735772215816,23.776884,194.92,194.81,1.6294]
[1735772216489,30.24288019,194.92,194.81,1.6294]
[1735772217785,30.24288019,194.92,194.83,16.21448344]
[1735772217786,6.46599619,194.92,194.83,16.21448344]
[1735772217999,6.46599619,194.92,194.84,30.97874894]
[1735772218409,6.46599619,194.92,194.84,35.97874894]
[1735772218600,6.46599619,194.92,194.85,1.6294]
[1735772220309,4.81443434,194.98,194.85,1.6294]
[1735772220514,11.28043053,194.98,194.85,16.83858344]
[1735772220679,23.776884,194.97,194.85,16.83858344]
[1735772221190,23.776884,194.97,194.85,1.6294]
[1735772221429,30.24288019,194.97,194.86,20.0]
[1735772222993,23.776884,194.97,194.86,20.0]
[1735772223202,6.46599619,194.96,194.86,20.0]
[1735772225792,6.46599619,194.96,194.88,10.20918344]
[1735772225995,6.46599619,194.96,194.87,6.8120115]
[1735772225996,4.81443434,194.98,194.89,10.20918344]
[1735772226201,4.81443434,194.98,194.9,11.80078344]
[1735772226410,4.81443434,194.98,194.9,12.57006815]
[1735772226586,4.81443434,194.98,194.91,20.0]
[1735772227004,4.81443434,194.98,194.91,30.20918344]
[1735772227218,6.10640174,195.01,194.91,30.20918344]
[1735772227823,6.10640174,195.01,194.92,6.0425]
[1735772228009,6.10640174,195.01,194.92,11.0425]
[1735772228197,6.10640174,195.01,194.92,21.25168344]
[1735772228395,6.10640174,195.01,194.92,16.25168344]
[1735772228596,6.10640174,195.01,194.92,6.0425]
[1735772229516,23.776884,195.0,194.92,6.0425]
[1735772231106,23.776884,195.0,194.9,1.5916]
[1735772231498,23.776884,195.0,194.9,21.5916]
[1735772233117,23.776884,195.0,194.9,1.5916]
[1735772233437,25.347284,195.0,194.87,6.0425]
[1735772237502,25.347284,195.0,194.88,10.97865498]
[1735772237704,25.347284,195.0,194.88,15.97865498]
[1735772238592,25.347284,195.0,194.88,10.97865498]
[1735772241216,25.347284,195.0,194.88,0.76947154]
[1735772241424,25.347284,195.0,194.87,6.0425]
[1735772242130,25.347284,195.0,194.88,5.0]
[1735772243115,25.347284,195.0,194.87,11.0425]
[1735772243321,25.347284,195.0,194.87,6.0425]
[1735772244326,43.776884,194.96,194.86,10.209184]
[1735772244508,43.776884,194.96,194.85,1.5916]
[1735772245721,23.776884,194.96,194.85,11.80078344]
[1735772246027,15.59013881,194.99,194.86,5.0]
[1735772246323,23.776884,194.98,194.86,5.0]
[1735772246723,23.776884,194.98,194.85,16.80078344]
[1735772247137,23.776884,194.98,194.86,5.0]
[1735772247916,23.776884,194.98,194.85,11.80078344]
[1735772248923,23.776884,194.94,194.82,6.2669]
[1735772249234,23.776884,194.92,194.82,6.2669]
[1735772249973,23.776884,194.92,194.82,16.47608344]
[1735772250175,23.776884,194.92,194.82,10.20918344]
[1735772250826,6.10640174,194.97,194.86,20.0]
[1735772251348,23.776884,194.96,194.86,30.20918344]
[1735772251746,23.776884,194.96,194.85,20.0]
[1735772251952,23.776884,194.96,194.85,30.20918344]
[1735772256167,23.776884,194.96,194.85,30.97871588]
[1735772258725,23.776884,194.96,194.85,30.20918344]
[1735772259148,23.776884,194.94,194.8,14.4095]
[1735772259325,23.776884,194.94,194.83,10.20918344]
[1735772259527,23.776884,194.94,194.83,30.20918344]
[1735772260062,23.776884,194.94,194.83,20.0]
[1735772260433,23.776884,194.94,194.83,30.20918344]
[1735772261961,23.776884,194.94,194.83,20.0]
[1735772262130,23.776884,194.94,194.83,30.20918344]
[1735772262513,23.776884,194.94,194.83,20.0]
[1735772262634,23.776884,194.94,194.83,30.20918344]
[1735772265281,23.776884,194.94,194.81,10.20918344]
[1735772265582,23.776884,194.92,194.79,10.20918344]
[1735772265778,23.776884,194.9,194.79,10.20918344]
[1735772265959,23.776884,194.9,194.78,10.20918344]
[1735772270753,23.776884,194.84,194.76,10.20918344]
[1735772273089,23.776884,194.84,194.73,20.64088671]
[1735772273090,23.776884,194.84,194.75,10.20918344]
[1735772282493,23.776884,194.84,194.72,10.20918344]
[1735772282691,23.776884,194.82,194.72,10.20918344]
[1735772286491,23.776884,194.82,194.73,10.20918344]
[1735772293621,23.776884,194.82,194.72,20.0]
[1735772293798,23.776884,194.82,194.73,10.20918344]
[1735772295106,23.776884,194.82,194.75,10.20918344]
[1735772295715,1.85722438,194.83,194.77,10.20918344]
[1735772296017,7.816,194.9,194.81,10.20918344]
[1735772296595,1.5394,194.9,194.81,10.20918344]
[1735772297196,1.5394,194.9,194.8,0.7697261]
[1735772297406,1.5394,194.9,194.82,10.20918344]
[1735772297407,23.776884,194.89,194.82,10.20918344]
[1735772298624,23.776884,194.89,194.8,0.7697261]
[1735772299070,23.776884,194.89,194.8,10.20918344]
[1735772307251,23.776884,194.89,194.81,20.0]
[1735772307412,23.776884,194.89,194.8,10.20918344]
[1735772311058,23.776884,194.89,194.8,20.0]
[1735772311286,23.776884,194.89,194.8,30.20918344]
[1735772312408,23.776884,194.89,194.79,20.0]
[1735772312712,30.019384,194.89,194.79,30.20918344]
[1735772313832,30.019384,194.89,194.78,20.0]
[1735772314016,30.019384,194.89,194.77,10.20918344]
[1735772314219,23.776884,194.87,194.74,0.76984643]
[1735772314406,23.776884,194.85,194.75,10.20918344]
[1735772316214,23.776884,194.85,194.74,10.20918344]
[1735772316937,23.776884,194.85,194.75,10.20918344]
[1735772317258,23.776884,194.85,194.75,30.20918344]
[1735772321228,23.776884,194.85,194.74,10.20918344]
[1735772322836,23.776884,194.85,194.75,10.20918344]
[1735772324337,23.776884,194.85,194.7,0.77009322]
[1735772324535,23.776884,194.83,194.7,0.77009322]
[1735772324834,23.776884,194.83,194.72,10.20918344]
[1735772325548,23.776884,194.81,194.69,12.8407]
[1735772325747,23.776884,194.81,194.71,10.20918344]
[1735772326439,23.776884,194.81,194.72,20.0]
[1735772326843,1.5921,194.76,194.67,8.06146591]
[1735772327147,23.776884,194.75,194.67,8.06146591]
[1735772327321,30.96992106,194.75,194.67,8.06146591]
[1735772327923,6.0851,194.74,194.67,8.06146591]
[1735772328121,23.776884,194.73,194.67,8.06146591]
[1735772328554,23.776884,194.73,194.63,10.20918344]
[1735772330047,23.776884,194.73,194.62,10.20918344]
[1735772330530,23.776884,194.73,194.61,10.20918344]
[1735772330947,23.776884,194.71,194.61,10.20918344]
[1735772331145,23.776884,194.71,194.63,10.20918344]
[1735772334456,1.5774,194.72,194.64,10.20918344]
[1735772334749,1.5774,194.72,194.66,10.20918344]
[1735772335253,1.5774,194.72,194.68,10.20918344]
[1735772335485,6.13549044,194.74,194.7,10.20918344]
[1735772335671,4.81443434,194.76,194.7,10.20918344]
[1735772335951,7.97665612,194.79,194.74,10.20918344]
[1735772336630,7.88112761,194.82,194.75,10.20918344]
[1735772336851,1.5846,194.82,194.76,10.20918344]
[1735772337463,1.5846,194.82,194.77,10.20918344]
[1735772337646,7.97665612,194.85,194.77,10.20918344]
[1735772339159,7.97665612,194.85,194.76,30.20918344]
[1735772339459,7.97665612,194.85,194.72,10.20918344]
[1735772339460,6.29652761,194.84,194.72,10.20918344]
[1735772339761,23.776884,194.83,194.72,10.20918344]
[1735772339961,23.776884,194.83,194.73,10.20918344]
[1735772341663,23.776884,194.83,194.72,30.20918344]
[1735772348353,14.25079484,194.84,194.75,10.20918344]
[1735772348668,7.95426723,194.84,194.76,10.20918344]
[1735772348968,7.95426723,194.84,194.77,10.20918344]
[1735772352382,1.5846,194.87,194.77,10.20918344]
[1735772352757,9.53886723,194.87,194.77,10.20918344]
[1735772364471,9.53886723,194.87,194.78,20.0]
[1735772365189,9.53886723,194.87,194.75,10.97910175]
[1735772367215,9.53886723,194.87,194.78,20.0]
[1735772371923,23.776884,194.86,194.76,20.0]
[1735772372415,23.776884,194.86,194.77,20.0]
[1735772372792,23.776884,194.86,194.76,20.0]
[1735772373894,23.776884,194.86,194.77,20.0]
[1735772374597,23.776884,194.86,194.75,10.20918344]
[1735772375336,23.776884,194.86,194.76,20.0]
[1735772375515,23.776884,194.86,194.77,20.0]
[1735772382515,23.776884,194.86,194.73,0.76996015]
[1735772382698,23.776884,194.86,194.72,10.20918344]
[1735772383726,23.776884,194.86,194.75,20.0]
[1735772383928,26.14842936,194.86,194.75,20.0]
[1735772384106,23.776884,194.84,194.75,20.0]
[1735772384299,23.776884,194.84,194.71,10.20918344]
[1735772388612,23.776884,194.84,194.74,30.20918344]
[1735772388811,23.776884,194.84,194.75,10.20918344]
[1735772391632,23.776884,194.84,194.75,20.0]
[1735772397450,28.909484,194.84,194.73,8.06146591]
[1735772397620,23.776884,194.82,194.73,8.06146591]
[1735772398427,23.776884,194.82,194.71,8.06146591]
[1735772399339,23.776884,194.82,194.71,18.27064935]
[1735772399647,23.776884,194.82,194.7,8.06146591]
[1735772399811,23.776884,194.82,194.73,20.0]
[1735772400432,23.776884,194.82,194.71,10.20918344]
[1735772401226,23.776884,194.82,194.71,20.0]
[1735772401414,30.14239883,194.82,194.71,20.0]
[1735772403255,23.776884,194.8,194.71,20.0]
[1735772404346,8.2336,194.81,194.71,30.20918344]
[1735772404550,8.2336,194.81,194.74,10.20918344]
[1735772406270,8.2336,194.81,194.72,0.77014818]
[1735772406271,8.2336,194.81,194.75,10.20918344]
[1735772406466,1.6419,194.86,194.8,10.20918344]
[1735772406777,6.5917,194.98,194.88,20.0]
[1735772406947,6.5917,194.98,194.96,20.0]
[1735772406948,8.07175795,194.97,194.96,20.0]
[1735772407283,8.07175795,194.97,194.92,0.76921236]
[1735772407358,8.07175795,194.97,194.89,0.76931192]
[1735772407652,8.07175795,194.97,194.9,10.20918344]
[1735772407953,20.0,195.01,194.9,1.28678408]
[1735772408161,20.0,194.97,194.9,1.28678408]
[1735772408348,23.776884,194.94,194.9,1.28678408]
[1735772408732,23.776884,194.94,194.88,8.06146591]
[1735772409133,23.776884,194.94,194.83,8.06146591]
[1735772409732,23.776884,194.94,194.81,10.20918344]
[1735772410360,23.776884,194.94,194.82,1.28731489]
[1735772410736,23.776884,194.94,194.83,1.28731489]
[1735772411626,23.776884,194.94,194.84,15.85529692]
[1735772412264,6.5917,194.95,194.82,41.32457586]
[1735772412453,6.5917,194.95,194.87,15.85529692]
[1735772413699,23.776884,194.99,194.85,15.85529692]
[1735772413834,20.0,194.96,194.84,17.14254601]
[1735772414049,20.0,194.96,194.86,1.28724909]
[1735772414871,20.0,194.96,194.85,1.28724909]
[1735772415035,43.776884,194.96,194.85,1.28724909]
[1735772415236,20.0,194.94,194.85,1.28724909]
[1735772415671,1.6419,194.93,194.86,1.28724909]
[1735772415861,23.776884,194.91,194.86,1.28724909]
[1735772416369,23.776884,194.91,194.8,1.28724909]
[1735772417074,23.776884,194.89,194.8,1.28724909]
[1735772417740,23.776884,194.89,194.79,1.28724909]
[1735772418155,25.1313,194.88,194.79,1.28724909]
[1735772418359,6.5917,194.92,194.79,37.14254601]
[1735772418567,6.5917,194.92,194.8,15.85529692]
[1735772418750,6.5917,194.92,194.82,15.85529692]
[1735772418959,6.5917,194.92,194.81,35.85529692]
[1735772420052,6.5917,194.92,194.82,17.14254601]
[1735772420651,6.5917,194.92,194.83,1.28724909]
[1735772420867,1.6419,194.93,194.86,20.0]
[1735772421183,6.0353,194.97,194.86,35.85529692]
[1735772421376,6.0353,194.97,194.86,36.62485151]
[1735772421781,6.0353,194.97,194.87,15.85529692]
[1735772423054,1.6513,194.98,194.88,1.28688748]
[1735772423540,1.6513,194.98,194.88,17.1421844]
[1735772424475,1.6513,194.98,194.88,15.85529692]
[1735772425656,15.84463253,194.95,194.88,15.84463253]
[1735772426472,15.84463253,194.94,194.87,35.84463253]
[1735772427069,15.84463253,194.94,194.88,1.28688748]
[1735772427970,15.84463253,194.93,194.88,1.28688748]
[1735772428572,15.84463253,194.93,194.87,1.28688748]
[1735772431158,15.84463253,194.94,194.87,37.13152001]
[1735772431400,13.430574,195.02,194.89,15.84463253]
[1735772431548,13.430574,195.02,194.88,0.76945024]
[1735772431549,15.84463253,194.97,194.9,15.84463253]
[1735772432877,15.84463253,194.96,194.89,35.84463253]
[1735772433777,15.84463253,194.96,194.88,35.84463253]
[1735772434176,15.84463253,194.95,194.88,35.84463253]
[1735772435186,15.84463253,194.96,194.89,35.84463253]
[1735772439276,15.84463253,194.95,194.89,20.0]
[1735772441578,15.84463253,194.96,194.89,20.0]
[1735772442299,10.13983356,194.96,194.89,20.0]
[1735772442901,10.13983356,194.95,194.89,20.0]
[1735772443407,10.13983356,194.93,194.87,20.0]
[1735772443579,10.13983356,194.93,194.89,20.0]
[1735772444294,15.84735338,194.93,194.89,20.0]
[1735772445591,15.84735338,194.92,194.86,20.54949]
[1735772445891,6.0353,195.02,194.89,20.0]
[1735772446093,5.1279,195.01,194.89,20.0]
[1735772446277,15.84735338,194.95,194.89,20.0]
[1735772446968,15.84735338,194.95,194.88,20.0]
[1735772447296,15.84735338,194.95,194.9,20.0]
[1735772450811,15.84735338,194.95,194.91,1.28684665]
[1735772451414,15.84735338,194.95,194.9,20.0]
[1735772451577,15.84735338,194.95,194.87,31.69470738]
[1735772452210,15.84735338,194.95,194.9,20.0]
[1735772452788,15.84735338,194.97,194.92,20.0]
[1735772453019,15.84735338,194.97,194.94,20.0]
[1735772456679,15.84735338,194.98,194.94,20.0]
[1735772457687,15.84735338,195.0,194.94,20.0]
[1735772458595,15.84735338,195.0,194.95,1.28657632]
[1735772459409,15.84735338,195.0,194.94,20.0]
[1735772459589,15.84735338,195.0,194.96,1.28656963]
[1735772460052,15.84735338,194.98,194.94,20.0]
[1735772461902,15.84735338,195.0,194.94,20.0]
[1735772462225,5.1271,195.05,194.94,20.0]
[1735772462404,6.5206,195.07,194.94,35.84735338]
[1735772462578,15.84735338,195.02,194.94,35.84735338]
[1735772462778,15.84735338,195.02,194.95,1.28655423]
[1735772463826,15.84735338,195.02,194.96,1.28655423]
[1735772464400,15.84735338,195.02,194.97,1.28655423]
[1735772465100,15.84735338,195.01,194.94,35.84735338]
[1735772465420,15.84735338,195.01,194.94,20.0]
[1735772465598,15.84735338,194.99,194.94,20.0]
[1735772465811,15.84735338,194.99,194.95,1.28656166]
[1735772466209,10.13614647,194.99,194.95,1.28656166]
[1735772466630,10.13614647,194.99,194.96,1.28656166]
[1735772467202,10.13614647,194.99,194.97,1.28656166]
[1735772467595,28.903484,195.06,194.97,1.28656166]
[1735772467813,10.13614647,195.01,194.97,1.28656166]
[1735772468003,10.13614647,195.01,194.94,30.13614647]
[1735772468729,10.13614647,195.01,194.95,1.28655557]
[1735772469228,10.13614647,195.01,194.96,1.28655557]
[1735772469402,10.13614647,194.99,194.96,1.28655557]
[1735772469832,10.13614647,194.99,194.97,1.28655557]
[1735772470616,10.13614647,194.99,194.94,20.0]
[1735772470738,10.13614647,194.97,194.94,20.0]
[1735772471226,10.13614647,194.97,194.95,1.28665385]
[1735772471735,10.13614647,194.97,194.96,1.28665385]
[1735772472107,10.13614647,194.99,194.96,1.28665385]
[1735772473138,10.13614647,194.99,194.94,20.0]
[1735772474541,10.13614647,194.99,194.95,1.28659425]
[1735772475037,28.904284,195.03,194.96,1.28659425]
[1735772475038,10.13614647,194.97,194.96,1.28659425]
[1735772475633,10.13614647,194.97,194.91,8.06146591]
[1735772475840,10.13614647,194.95,194.91,8.06146591]
[1735772476140,10.13614647,194.95,194.91,20.0]
[1735772476325,10.13614647,194.95,194.92,1.28689609]
[1735772476935,10.13614647,194.95,194.9,21.5794]
[1735772477512,10.13614647,194.95,194.91,1.28691167]
[1735772478056,10.13614647,194.95,194.92,1.28691167]
[1735772478950,10.13614647,194.95,194.9,20.0]
[1735772479540,10.13614647,194.95,194.91,1.28694695]
[1735772480371,10.13614647,194.95,194.92,1.28694695]
[1735772480962,10.13614647,194.95,194.88,10.13614647]
[1735772481256,10.13614647,194.95,194.89,1.2868474]
[1735772481946,10.13614647,194.95,194.9,1.2868474]
[1735772482627,10.13614647,194.97,194.91,20.0]
[1735772482953,10.13614647,194.97,194.91,21.2868474]
[1735772483437,10.13614647,194.97,194.92,21.2868474]
[1735772483957,10.13614647,194.97,194.92,1.2868474]
[1735772484259,10.13614647,194.97,194.93,1.2868474]
[1735772484761,10.13614647,194.97,194.94,1.2868474]
[1735772485339,10.13614647,194.97,194.95,1.2868474]
[1735772486058,10.13614647,194.97,194.91,1.2868474]
[1735772486239,10.13614647,194.94,194.91,1.2868474]
[1735772486849,10.13614647,194.94,194.92,1.2868474]
[1735772487450,10.13614647,194.94,194.89,20.0]
[1735772487992,10.13614647,194.94,194.9,1.28696566]
[1735772488873,10.13614647,194.94,194.91,1.28696566]
[1735772489449,10.13614647,194.94,194.86,24.31211238]
[1735772489949,10.13614647,194.94,194.87,1.28695781]
[1735772490378,10.13614647,194.94,194.88,1.28695781]
[1735772491077,10.13614647,194.94,194.89,1.28695781]
[1735772491673,10.13614647,194.94,194.9,1.28695781]
[1735772492477,10.13614647,194.93,194.86,14.17596591]
[1735772492641,10.13614647,194.93,194.86,6.1145]
[1735772493281,10.13614647,194.93,194.87,1.28698193]
[1735772493873,10.13614647,194.94,194.88,1.28698193]
[1735772494580,10.13614647,194.94,194.89,1.28698193]
[1735772495454,10.13614647,194.94,194.9,1.28698193]
[1735772496078,23.776884,194.99,194.9,1.28698193]
[1735772496079,10.13614647,194.92,194.9,1.28698193]
[1735772496267,10.13614647,194.91,194.85,8.06146591]
[1735772496456,10.13614647,194.88,194.85,8.06146591]
[1735772496657,10.13614647,194.86,194.85,8.06146591]
[1735772497479,10.13614647,194.86,194.8,8.06146591]
[1735772497684,10.13614647,194.84,194.8,8.06146591]
[1735772498068,10.13614647,194.85,194.8,8.06146591]
[1735772498472,10.13614647,194.85,194.81,1.28756296]
[1735772499078,10.13614647,194.85,194.78,10.13614647]
[1735772499869,10.13614647,194.85,194.77,6.014]
[1735772499870,10.13614647,194.84,194.79,1.28756189]
[1735772500597,10.13614647,194.84,194.8,1.28756189]
[1735772501377,10.13614647,194.84,194.78,1.28756189]
[1735772502006,10.13614647,194.84,194.79,1.28756189]
[1735772502295,10.13614647,194.83,194.79,1.28756189]
[1735772502701,10.13614647,194.83,194.78,1.28756189]
[1735772502868,10.13614647,194.81,194.78,1.28756189]
[1735772503071,10.13614647,194.79,194.78,1.28756189]
[1735772503373,10.13614647,194.79,194.75,20.0]
[1735772504262,10.13614647,194.79,194.73,1.28756189]
[1735772504680,10.13614647,194.78,194.73,1.28756189]
[1735772505182,10.13614647,194.78,194.72,6.014]
[1735772505591,23.776884,194.86,194.72,6.014]
[1735772505592,10.13614647,194.77,194.72,6.014]
[1735772508365,10.13614647,194.76,194.7,1.6106]
[1735772508579,10.13614647,194.76,194.72,20.0]
[1735772509281,10.13614647,194.76,194.71,20.0]
[1735772509472,10.13614647,194.75,194.67,6.5134]
[1735772509782,10.13614647,194.73,194.67,6.5134]
[1735772510010,10.13614647,194.71,194.65,1.5989]
[1735772510194,10.13614647,194.71,194.67,20.0]
[1735772510697,10.13614647,194.7,194.67,20.0]
[1735772511079,10.13614647,194.7,194.66,20.0]
[1735772511588,10.13614647,194.71,194.67,20.0]
[1735772512262,10.13614647,194.71,194.65,1.5989]
[1735772512690,10.13614647,194.71,194.64,10.13614647]
[1735772513102,10.13614647,194.72,194.65,10.13614647]
[1735772514193,10.13614647,194.71,194.64,10.13614647]
[1735772515197,10.13614647,194.71,194.66,20.0]
[1735772515822,6.4251,194.77,194.66,20.0]
[1735772515823,10.13614647,194.7,194.66,20.0]
[1735772516312,10.13614647,194.69,194.66,20.0]
[1735772516720,10.13614647,194.7,194.66,20.0]
[1735772518612,1.5067,194.8,194.7,20.0]
[1735772518807,10.13614647,194.76,194.72,20.0]
[1735772519123,10.13614647,194.77,194.7,10.13614647]
[1735772522203,10.13614647,194.76,194.69,12.8409]
[1735772522400,1.5067,194.8,194.69,20.0]
[1735772522401,10.13614647,194.74,194.69,20.0]
[1735772523310,10.13614647,194.76,194.72,20.0]
[1735772523509,10.13614647,194.76,194.69,10.13614647]
[1735772523510,10.13614647,194.77,194.7,10.13614647]
[1735772524028,10.13614647,194.78,194.68,12.8415]
[1735772524222,10.13614647,194.79,194.72,20.0]
[1735772525828,10.13614647,194.78,194.72,20.0]
[1735772526136,10.13614647,194.77,194.72,20.0]
[1735772526626,10.13614647,194.75,194.64,14.3982]
[1735772526810,10.13614647,194.74,194.64,15.1685157]
[1735772527130,10.13614647,194.73,194.68,20.0]
[1735772527707,10.13614647,194.71,194.67,20.0]
[1735772527924,10.13614647,194.71,194.63,6.5134]
[1735772527925,10.13614647,194.69,194.63,6.5134]
[1735772528211,10.13614647,194.7,194.66,20.0]
[1735772528920,10.13614647,194.71,194.67,20.0]
[1735772529298,10.13614647,194.73,194.67,20.0]
[1735772529506,1.5067,194.8,194.68,10.13614647]
[1735772529701,10.13614647,194.76,194.69,10.13614647]
[1735772529934,1.5067,194.8,194.7,10.13614647]
[1735772530102,10.13614647,194.79,194.71,10.13614647]
[1735772530712,7.395274,194.84,194.71,10.15694366]
[1735772531626,23.776884,194.83,194.72,20.0]
[1735772531949,1.508,194.77,194.7,1.2880123]
[1735772532545,1.508,194.77,194.66,1.2880123]
[1735772534950,23.776884,194.76,194.66,21.2880123]
[1735772535319,23.776884,194.76,194.66,20.0]
[1735772537244,23.776884,194.76,194.65,1.2880123]
[1735772537664,1.508,194.77,194.64,1.2880123]
[1735772537854,1.508,194.77,194.67,20.0]
[1735772538552,1.508,194.77,194.66,10.15694366]
[1735772538755,43.776884,194.76,194.65,1.2880123]
[1735772539053,20.0,194.76,194.67,1.2880123]
[1735772539363,43.776884,194.76,194.67,1.2880123]
[1735772539736,43.776884,194.76,194.65,1.2880123]
[1735772539934,23.776884,194.75,194.65,1.2880123]
[1735772540426,23.776884,194.75,194.63,20.0]
[1735772541235,8.1257,194.72,194.64,1.28869471]
[1735772541440,23.776884,194.71,194.64,1.28869471]
[1735772541836,23.776884,194.71,194.59,20.0]
[1735772542580,20.0,194.68,194.55,0.77069163]
[1735772542739,20.0,194.68,194.6,1.288713]
[1735772543015,20.0,194.66,194.6,1.288713]
[1735772543357,20.0,194.66,194.54,6.4387]
[1735772543664,8.1257,194.72,194.58,20.0]
[1735772544137,8.1257,194.72,194.6,20.0]
[1735772544549,8.1257,194.72,194.61,1.28884046]
[1735772545475,8.1257,194.72,194.62,1.28884046]
[1735772546059,1.6516,194.72,194.62,1.28884046]
[1735772546369,1.6516,194.72,194.63,1.28884046]
[1735772546864,20.0,194.71,194.64,1.28884046]
[1735772547670,20.0,194.71,194.59,20.0]
[1735772548171,20.0,194.71,194.6,1.28885368]
[1735772548968,20.0,194.71,194.61,1.28885368]
[1735772549539,20.0,194.71,194.58,10.15694366]
[1735772550147,23.776884,194.7,194.56,10.15694366]
[1735772550340,23.776884,194.7,194.59,1.28887973]
[1735772551263,23.776884,194.7,194.54,6.4387]
[1735772551264,20.0,194.66,194.6,1.28887973]
[1735772551473,23.776884,194.68,194.6,1.28887973]
[1735772551764,23.776884,194.68,194.55,1.28887973]
[1735772552473,23.776884,194.68,194.56,1.28887973]
[1735772553377,23.776884,194.68,194.57,1.28887973]
[1735772553882,23.776884,194.68,194.54,16.59564366]
[1735772554583,23.776884,194.68,194.55,1.28905202]
[1735772555176,23.776884,194.68,194.56,1.28905202]
[1735772556053,23.776884,194.68,194.55,1.28905202]
[1735772556687,23.776884,194.68,194.56,1.28905202]
[1735772557583,23.776884,194.68,194.55,1.28905202]
[1735772559064,20.0,194.65,194.55,1.28905202]
[1735772560286,20.0,194.65,194.54,6.4387]
[1735772561397,20.0,194.63,194.54,6.4387]
[1735772563679,23.776884,194.62,194.54,6.4387]
[1735772564087,23.776884,194.62,194.53,1.555]